Cogmind - Beta 13 @@@ ROGUE MODE // 2024.03.10 @ 02:08:29 Player: rCartos Result: Destroyed by G-47 Trooper with Particle Gun Performance ------------- Evolutions (2) 1000 Regions Visited (4) 800 Robots Destroyed (38) 190 Value Destroyed (1125) 1125 Prototype IDs (4) 80 Alien Tech Used (0) 0 Bonus (-142) -142 TOTAL SCORE: 3053 Bonus ------- Friendly Fire -142 Cogmind --------- Core Integrity 0/550 Matter 273/300 Energy 100/100 System Corruption 3% Temperature Cool (14) Movement Core (50) Location -8/Materials Parts ------- > --- POWER (2) -------- (None) > --- PROPULSION (3) --- (None) > --- UTILITY (4) ------ Advanced Terrain Scan Processor Targeting Computer > --- WEAPON (2) ------- (None) > --- INVENTORY (5) ---- Aluminum Leg Advanced Beam Cannon Peak State ------------ > --- POWER ------------ Improved Ion Engine Heavy Ion Engine > --- PROPULSION ------- Aluminum Leg Aluminum Leg Aluminum Leg > --- UTILITY ---------- Sensor Array Improved Terrain Scan Processor Light Armor Plating Drone Bay > --- WEAPON ----------- Arc Projector Arc Projector > --- INVENTORY -------- Advanced Terrain Scan Processor Beam Cannon Advanced Beam Cannon Heavy Assault Rifle [Rating: 27] Favorites ----------- Power Improved Ion Engine Engine Improved Ion Engine Power Core Light Nuclear Core Propulsion Aluminum Leg Treads Light Treads Leg Aluminum Leg Wheel Wheel Utility Light Armor Plating Device Sensor Array Storage Small Storage Unit Processor Advanced Terrain Scan Processor Hackware Hacking Suite Protection Light Armor Plating Weapon Advanced Beam Cannon Energy Gun Improved EM Shotgun Energy Cannon Advanced Beam Cannon Ballistic Gun Heavy Assault Rifle Launcher Grenade Launcher Build | -11 -10 -9 -9 -8 ------- Run | Yrd Mat Mat Sto Mat Slots Evolved 4 | . . 2 . 2 Power 1 | . . . . 1 Propulsion 1 | . . 1 . . Utility 2 | . . 1 . 1 Weapon . | . . . . . Parts Attached 62 | 9 3 3 28 19 Power 6 | 1 1 . 2 2 Engine 5 | 1 1 . 2 1 Core 1 | . . . . 1 Reactor . | . . . . . Propulsion 13 | 2 . 1 5 5 Treads 4 | . . . . 4 Leg 6 | . . . 5 1 Wheel 3 | 2 . 1 . . Hover . | . . . . . Flight . | . . . . . Utility 17 | 3 . 2 8 4 Device 8 | 2 . . 6 . Storage 1 | 1 . . . . Processor 3 | . . . . 3 Hackware 1 | . . . 1 . Protection 4 | . . 2 1 1 Artifact . | . . . . . Weapon 26 | 3 2 . 13 8 Energy Gun 6 | 1 . . 2 3 Energy Cannon 9 | . . . 8 1 Ballistic Gun 9 | 2 1 . 2 4 Ballistic Cannon . | . . . . . Launcher 2 | . 1 . 1 . Special Weapon . | . . . . . Impact Weapon . | . . . . . Slashing Weapon . | . . . . . Piercing Weapon . | . . . . . Special Melee Weapon . | . . . . . Unidentified Prototypes 4 | . . . 3 1 Corrupted Parts 2 | . . . 1 1 System Corruption 4 | . . . 1 3 Parts Lost 33 | . . . 13 20 Power 5 | . . . 2 3 Propulsion 10 | . . . 3 7 Utility 8 | . . . 4 4 Weapon 10 | . . . 4 6 Highest Loss Streak 13 | . . . 13 10 To Critical Strikes 1 | . . . . 1 Average Slot Usage (%) 86 | . 100 100 90 75 Engine 10 | . 14 11 10 10 Treads 1 | . . . . 3 Leg 15 | . . . 19 13 Wheel 7 | . 28 33 7 . Device 14 | . 28 11 14 9 Processor 4 | . . . . 12 Hackware 2 | . . . 4 . Protection 9 | . . 22 12 7 Energy Gun 5 | . . . 4 7 Energy Cannon 6 | . . . 11 1 Ballistic Gun 7 | . 27 22 4 6 Naked Turns . | . . . . . Heaviest Build 33 | 11 9 12 25 33 Greatest Support 40 | 20 20 30 30 40 Greatest Overweight (x) 6 | . . . 5 6 Average Overweight (x) . | . . . . . Largest Inventory Capacity 8 | 8 5 5 5 5 Average Capacity 5 | 5 5 5 5 5 Most Carried 5 | 5 5 3 5 5 Average Carried 2 | 3 4 1 1 2 Final Capacity 5 | 5 5 5 5 5 Final Carried 4 | 3 4 1 1 2 Class Distribution -------------------- 59% | Scavenger-Mutant 40% | Mutant Dominant Class ---------------- Mutant | -10/Materials Mutant | -9/Materials Scavenger-Mutant | -9/Storage Scavenger-Mutant | -8/Materials Resources | -11 -10 -9 -9 -8 ----------- Run | Yrd Mat Mat Sto Mat Matter Collected 820 | 294 76 . 248 202 Remotely . | . . . . . Salvage Created 1351 | 107 150 . 757 337 Parts 100 | 6 12 . 54 28 Haulers Intercepted . | . . . . . Recyclers Shooed . | . . . . . Parts Field Recycled . | . . . . . Retrieved Matter . | . . . . . Parts Self-Destructed . | . . . . . Prevented . | . . . . . Kills | -11 -10 -9 -9 -8 ------- Run | Yrd Mat Mat Sto Mat Combat Hostiles Destroyed 32 | . 5 . 19 8 Guns 18 | . 3 . 7 8 Cannons 10 | . . . 10 . AOE 4 | . 2 . 2 . Classes Destroyed 11 | 2 4 . 4 1 Worker 1 | . 1 . . . Builder 1 | . 1 . . . Tunneler 1 | 1 . . . . Recycler 1 | 1 . . . . Operator 1 | . . . 1 . Drone 1 | . . . 1 . Watcher 1 | . . . 1 . Swarmer 9 | . 2 . 5 2 Grunt 10 | . 3 . 5 2 Sentry 12 | . . . 9 3 Hunter 1 | . . . . 1 Best Kill Streak 5 | 2 3 . 5 4 Combat Bots Only 5 | . 2 . 5 4 Max Kills in Single Turn 2 | 1 2 . 2 1 Gunslinging . | . . . . . Exploded 2 | . 2 . 1 . Melee . | . . . . . Uniques/NPCs Destroyed . | . . . . . Combat | -11 -10 -9 -9 -8 -------- Run | Yrd Mat Mat Sto Mat Hostile Shots Fired 384 | . 23 . 152 209 Missed 97 | . 7 . 38 52 Damage Taken 3916 | 3 138 . 1548 2227 Core 815 | . 39 . 211 565 Absorbed by Shields . | . . . . . Regen/Repaired (Parts) 74 | . . . 74 . Core Remaining (%) 77 | 100 84 . 47 . Volleys Fired 94 | 4 14 . 42 34 Largest 2 | 2 2 . 2 2 Hottest 128 | 40 50 . 128 110 Shots Fired 172 | 8 28 . 73 63 Gun 136 | 8 26 . 39 63 Cannon 31 | . . . 31 . Launcher 5 | . 2 . 3 . Special . | . . . . . Kinetic 64 | 8 26 . 4 26 Thermal 45 | . . . 31 14 Explosive 5 | . 2 . 3 . Electromagnetic 58 | . . . 35 23 Robot Hit Streak 13 | 8 11 . 9 13 Robot Miss Streak 7 | . 3 . 7 3 Penetration Max . | . . . . . Secondary Targets 4 | . 1 . . 3 Max Gunslinging Chain 1 | . 1 . . 1 Shots Hit Robots 110 | 8 18 . 42 42 Core Hits 72 | 4 15 . 37 16 Critical Kills . | . . . . . Critical Parts Destroyed . | . . . . . Critical Strikes 1 | . . . . 1 Burn 1 | . . . . 1 Melee Attacks . | . . . . . Impact . | . . . . . Slashing . | . . . . . Piercing . | . . . . . Sneak Attacks . | . . . . . Combat Hostiles . | . . . . . Follow-up Attacks . | . . . . . Damage Inflicted 1964 | 63 255 . 1006 640 Guns 1250 | 57 141 . 412 640 Cannons 322 | . . . 322 . Explosions 358 | . 114 . 244 . Melee . | . . . . . Ramming 34 | 6 . . 28 . Kinetic 508 | 57 141 . 37 273 Thermal 571 | . . . 367 204 Explosive 313 | . 114 . 199 . Electromagnetic 538 | . . . 375 163 Impact . | . . . . . Slashing . | . . . . . Piercing . | . . . . . Highest Corruption 3 | . . . 1 3 Average Corruption 1 | . . . 1 3 Corruption Purged . | . . . . . Corruption Blocked . | . . . . . Effects 6 | . . . 3 3 Message Errors 1 | . . . 1 . Matter Fused 1 | . . . . 1 Energy Discharges 2 | . . . 1 1 Parts Rejected 2 | . . . 1 1 Overload Shots . | . . . . . Overflow Damage . | . . . . . Projectiles . | . . . . . Explosions . | . . . . . Melee . | . . . . . Knockbacks . | . . . . . Impact . | . . . . . Kinetic . | . . . . . Secondary . | . . . . . Self-Inflicted Damage 13 | 3 . . 10 . Shots 1 | . . . 1 . Rammed 3 | 1 . . 1 1 Targets Rammed 7 | 1 . . 5 1 Kicked 4 | . . . 4 . Crushed . | . . . . . Highest Temperature 455 | . 12 . 455 330 Average Temperature 101 | . 7 . 119 77 Received Heat Transfer 1200 | . 30 . 549 621 Effects 2 | . . . 2 . Energy Bleed 1 | . . . 1 . Short Circuit 1 | . . . 1 . Siege Activations . | . . . . . Robots Corrupted . | . . . . . Combat Hostiles . | . . . . . Parts Fried . | . . . . . Impact Corruptions . | . . . . . Robots Melted . | . . . . . Combat Hostiles . | . . . . . Parts Melted . | . . . . . Heat Transferred 1110 | . . . 592 518 Parts Sabotaged . | . . . . . Parts Stolen . | . . . . . Parts Stripped . | . . . . . Power Chain Reactions 1 | . . . 1 . Alert | -11 -10 -9 -9 -8 ------- Run | Yrd Mat Mat Sto Mat Peak Influence 344 | 10 158 66 344 198 Initial 108 | . 6 66 27 108 Average 160 | 4 76 66 225 93 Maximum Alert Level 1 | . . . 1 . Low Security (%) 61 | 100 100 100 28 100 Level 1 38 | . . . 71 . Level 2 . | . . . . . Level 3 . | . . . . . Level 4 . | . . . . . Level 5 . | . . . . . High Security . | . . . . . Max Security . | . . . . . Squads Dispatched 8 | . . 1 5 2 Investigation 1 | . . . 1 . Extermination . | . . . . . Reinforcement 4 | . . 1 1 2 Assault . | . . . . . Garrison 3 | . . . 3 . Intercept . | . . . . . Searches Triggered . | . . . . . Construction Impeded . | . . . . . Haulers Reinforced . | . . . . . Active Scanning Responses . | . . . . . Cargo Convoy Interrupts . | . . . . . Stealth | -11 -10 -9 -9 -8 --------- Run | Yrd Mat Mat Sto Mat Distress Signals 6 | . 1 . 2 3 Communications Jammed . | . . . . . Distress Signals . | . . . . . Times Spotted 67 | . 7 1 28 31 Peak Tracking Total 18 | . 3 1 9 18 Tactical Retreats 8 | . . . 2 6 Traps | -11 -10 -9 -9 -8 ------- Run | Yrd Mat Mat Sto Mat Traps Triggered 1 | . . . 1 . Indirectly . | . . . . . Trap Hack Attempts . | . . . . . Triggered . | . . . . . Disarmed . | . . . . . Reprogrammed . | . . . . . Reused . | . . . . . Traps Extracted . | . . . . . Installed . | . . . . . Triggered . | . . . . . Machines | -11 -10 -9 -9 -8 ---------- Run | Yrd Mat Mat Sto Mat Machines Disabled 1 | . . . 1 . Max in Single Turn 1 | . . . 1 . Machines Repaired . | . . . . . Machines Dismantled . | . . . . . Machines Sabotaged . | . . . . . Overloaded Fab Kills . | . . . . . Hacking | -11 -10 -9 -9 -8 --------- Run | Yrd Mat Mat Sto Mat Machines Accessed 10 | . . . 8 2 Terminals 9 | . . . 7 2 Fabricators . | . . . . . Repair Stations 1 | . . . 1 . Recycling Units . | . . . . . Scanalyzers . | . . . . . Garrison Access . | . . . . . Total Hacks 27 | . . . 19 8 Successful 9 | . . . 7 2 Failed 18 | . . . 12 6 Catastrophic 4 | . . . 3 1 Database Lockouts . | . . . . . Manual . | . . . . . Terminals 25 | . . . 17 8 Fabricators . | . . . . . Repair Stations 2 | . . . 2 . Recycling Units . | . . . . . Scanalyzers . | . . . . . Garrison Access . | . . . . . Terminal Hacks 7 | . . . 5 2 Open Door 3 | . . . 3 . Emergency Access Points 1 | . . . 1 . Patrol Status 1 | . . . . 1 Reinforcement Status 1 | . . . . 1 Zone Layout 1 | . . . 1 . Fabricator Hacks . | . . . . . Repair Station Hacks 2 | . . . 2 . Scan Component 1 | . . . 1 . Repair 1 | . . . 1 . Recycling Unit Hacks . | . . . . . Scanalyzer . | . . . . . Garrison Access Hacks . | . . . . . Unauthorized Hacks . | . . . . . Terminals . | . . . . . Fabricators . | . . . . . Repair Stations . | . . . . . Recycling Units . | . . . . . Scanalyzers . | . . . . . Garrison Access . | . . . . . Data Cores Recovered 1 | . . . 1 . Used . | . . . . . Hacking Detections 5 | . . . 3 2 Full Trace Events 3 | . . . 2 1 Feedback Events . | . . . . . Feedback Blocked . | . . . . . Robot Schematics Acquired . | . . . . . Robots Built . | . . . . . Authchips . | . . . . . Time . | . . . . . Total Robot Build Rating . | . . . . . Part Schematics Acquired . | . . . . . Parts Built . | . . . . . Authchips . | . . . . . Time . | . . . . . Total Part Build Rating . | . . . . . Parts Repaired 1 | . . . 1 . Time 26 | . . . 26 . Parts Recycled . | . . . . . Recycled Matter . | . . . . . Retrieved Matter . | . . . . . Retrieved Components . | . . . . . Parts Scanalyzed . | . . . . . Part Schematics Acquired . | . . . . . Parts Damaged . | . . . . . Bothacking | -11 -10 -9 -9 -8 ------------ Run | Yrd Mat Mat Sto Mat Used RIF Installer . | . . . . . Robots Hacked . | . . . . . Non-combat . | . . . . . Combat . | . . . . . Robot Hacks Applied . | . . . . . Relay Couplers Released . | . . . . . Fabnet Peak Effective % . | . . . . . Robots Rewired . | . . . . . Allies Hacked . | . . . . . Hacks Repelled . | . . . . . Allies | -11 -10 -9 -9 -8 -------- Run | Yrd Mat Mat Sto Mat Total Allies . | . . . . . Largest Group . | . . . . . Highest-Rated Group . | . . . . . Highest-Rated Ally . | . . . . . Total Orders . | . . . . . Ally Attacks . | . . . . . Total Damage . | . . . . . Kills . | . . . . . Allies Corrupted . | . . . . . Allies Melted . | . . . . . Intel | -11 -10 -9 -9 -8 ------- Run | Yrd Mat Mat Sto Mat Robot Analysis Total . | . . . . . Derelict Logs Recovered . | . . . . . Drone Launches 23 | . . . 22 1 Drone Recoveries 15 | . . . 15 . Exploration | -11 -10 -9 -9 -8 ------------- Run | Yrd Mat Mat Sto Mat Turns Passed 1718 | 66 174 10 933 535 Spaces Moved 1108 | 50 156 8 659 235 Core 54 | 16 . . 23 15 Treads 85 | . . . . 85 Legs 577 | . . . 442 135 Wheels 392 | 34 156 8 194 . Hover . | . . . . . Flight . | . . . . . Fastest Speed 50 | 50 80 80 80 50 Average Speed 116 | 70 80 80 110 168 Slowest Speed 350 | 80 80 80 300 350 Overloaded Moves . | . . . . . Propulsion Burnouts . | . . . . . Robots Hopped . | . . . . . Cave-ins Triggered . | . . . . . Exploration Rate (%) 30 | 3 35 2 84 28 Regions Visited 4 Branch Regions 1 Pre-discovered Areas . | . . . . . Known Exits Taken . | . . . . . Unknown Exits Taken 4 | 1 1 1 1 . Scrap Searched . | . . . . . Spaces Dug . | . . . . . Terrain Destroyed 51 | . 16 . 35 . Melee . | . . . . . Projectile . | . . . . . AOE 51 | . 16 . 35 . Terrain Rammed . | . . . . . Walls Destroyed . | . . . . . Machines Disabled . | . . . . . Actions | -11 -10 -9 -9 -8 --------- Run | Yrd Mat Mat Sto Mat Total 1368 | 73 182 11 793 309 Wait 25 | . 1 . 24 . Move 1104 | 49 155 7 658 235 Hop . | . . . . . Pick Up 60 | 10 5 . 27 18 Fast Attach . | . . . . . Attach 48 | 7 . 3 21 17 Detach . | . . . . . Swap 14 | 2 3 . 7 2 Drop 16 | . 4 1 9 2 Fire 94 | 4 14 . 42 34 Melee . | . . . . . Ram 2 | 1 . . 1 . Kick 4 | . . . 4 . Crush 1 | . . . . 1 Escape Stasis . | . . . . . Rewire . | . . . . . Trap . | . . . . . Miscellaneous . | . . . . . Route ------- -11/Scrapyard -10/Materials -9/Materials -9/Storage -8/Materials (discovered 1 exit: [*Fac]) History --------- Turn | Location | Event 13 | -11/Scrapyard | Discovered new exit (range 15) 67 | -11/Scrapyard | Entered Materials 229 | -10/Materials | Discovered new exit (range 15) 241 | -10/Materials | Entered another Materials area 241 | -9/Materials | Evolved 2 slots: Propulsion x1, Utility x1 245 | -9/Materials | Discovered new exit (range 7) 251 | -9/Materials | Entered Storage 316 | -9/Storage | Build established: Mutant 386 | -9/Storage | Lost 3 allies 472 | -9/Storage | Garrison activated, responded to threat 531 | -9/Storage | Core integrity fell below 50% 561 | -9/Storage | Lost 13 parts (2p3n4u4w) 839 | -9/Storage | Build established: Scavenger-Mutant 1095 | -9/Storage | Repaired Aluminum Leg 1166 | -9/Storage | Discovered new exit (range 15) 1184 | -9/Storage | Entered Materials 1184 | -8/Materials | Evolved 2 slots: Power x1, Utility x1 1458 | -8/Materials | Discovered new exit (range 10) 1573 | -8/Materials | Lost 10 parts (2p3n3u2w) 1700 | -8/Materials | Core integrity fell below 50% 1715 | -8/Materials | Core integrity fell below 20% 1719 | -8/Materials | Destroyed by G-47 Trooper with Particle Gun Last Messages --------------- Hvy. Assault Rifle destroyed. G-47 Trooper destroyed. Acquired 31 matter. Acquired Aluminum Leg. Slug penetrates S-10 Pest. Acquired Lgt. Treads. Pulse Rifle destroyed. Acquired Hvy. Assault Rifle. Aluminum Leg destroyed. Penetrated by Slug. System corrupted: Matter fused (-9). Beam Cannon destroyed. Hvy. Assault Rifle severed. Slammed into G-47 Trooper. Lgt. Treads destroyed. Penetrated by Slug. Critical hit (Burn: +37). Slug penetrates B-36 Bruiser. B-36 Bruiser destroyed. Critical hit (Burn: +37). Map ----- +----------------------------------------------------+ | ?????????????????????????????????????????????????? | | ?????????????????????????????????????????????????? | | ?????????????????????????????????????????????????? | | ?????????????????????????????????????????????????? | | ?????????????????????????????????????????????????? | | ?????????????????????????????????????????????????? | | ?????????????????????????????????????????????????? | | ?????????????????????????????????????????????????? | | ?????????????????????????????????????????????????? | | ?????????????????????????????????????????????????? | | ?????????????????????????????????????????????????? | | ?????????????????????????????????????????????????? | | ?????????????????????????????????????????????????? | | ?????????????????????????????????????????????????? | | ????????????????????####?????????????????????????? | | ????????????????????# ?????????????????????????? | | ????????????????????# ??????????????H??????????? | | ????????????????????# ?????????????????????????? | | ????????????????????# #????????????????????????? | | ????????????????????# #??????###???????????????? | | ????????????????????# ######## ####????????????? | | ????????????????????# # % #????????????? | | ????????????????????# # != #???#????????? | | ????????????????????# # gx"""" #?? #????????? | | ????????????????????# =#% %!"""" #?? #????????? | | ????????????????????# %/@ =x"""" #?? #????????? | | ????????????????????# %#[ !! gsl g #?? #????????? | | ????????????????????# [# !! g g[ #?? #????????? | | ????????????????????# ############### #########? | | ????????????????????# #? | | ????????????????????# #? | | ????????????????????# #? | | ????????????????????# ############# """ ## | | ????????????????????# #???????????# """ | | ????????????????????# #???????????# """ | | ????????????????????# #???????????# """ | | ????????????????????% ???????????# | | ??????????????????? ???????????# "" | | ?????????????????? T ?????#+##### """ | | ?????????????????? """ | | ?????????????????### ?????# ######/##### """ | | ???????????????????######?????# ## # "" | | ??????????????????????????????# ##!= """" # | | ??????????????????????????????# ## """" # | | ????????????????????????####### ##%![ """" # "" | | ???????????????????+ + "* # """ | | ????????????????????????####### ## T # """ | | ??????????????????????????????# ## " !! # """ | | ??????????????????????????????# ## ! # "" | | ??????????????????????????????# ############ | +----------------------------------------------------+ Best States ------------- Heat Dissipation 31 Energy Generation 21 Energy Capacity 445 Matter Stores 300 Matter Capacity 300 Sight Range 16 Robot Scan Range 14 Terrain Scan Range 16 Terrain Scan Density 210 Armor Coverage 300 Evasion (%) 55 Targeting Accuracy 5 Recoil Reduction 2 Offensive Hacking 10 Item Schematics ----------------- None Robot Schematics ------------------ None Fabricated ------------ Nothing Alien Tech Used ----------------- None Achievements -------------- Backstab Challenges ------------ None Game ------ Seed TiamatThrusterExpander Manual? 0 Play Time 00:30:56 Cumulative 6.3 hours Start 2024.03.09 @ 23:48:41 End 2024.03.10 @ 02:08:29 Sessions 1 Manual Loads 0 Difficulty Rogue Special Mode None Game No. 15 Rogue 15 Adventurer 0 Explorer 0 Win Type - Total 0 Types 0/0/0/0/0/0/0/0/0 Lore% 2 Gallery% 12 Achievement% 8 Wizard Run 0 Options --------- Layout 1 ASCII 0 Keyboard 0 Movement Mouse Keybinds 0 Fullscreen 1 Font 16/Terminus Map View 25x20 Zoom Use 88% Tactical HUD 0 Map Filters NONE Filters NONE Steam 1 RUN: a4d39d8e-87b6-4029-861e-88565764391d